Cogmind - Beta 16.1 @@@ ROGUE MODE // 2026.03.19 @ 11:33:49 Player: ae Result: Destroyed by P3-EEI(R) with Subdweller Laser Performance ------------- Evolutions (0) 0 Regions Visited (2) 400 Robots Destroyed (12) 60 Value Destroyed (380) 380 Prototype IDs (13) 260 Alien Tech Used (0) 0 Bonus (-8) -8 TOTAL SCORE: 1092 Bonus ------- Friendly Fire -8 Cogmind --------- Core Integrity 0/250 Matter 294/300 Energy 250/250 System Corruption 0% Temperature Cool (36) Movement Treading (240) Ox1 Location -10/Subcaves Parts ------- > --- POWER (1) -------- Ion Engine > --- PROPULSION (2) --- Light Treads Aluminum Leg > --- UTILITY (2) ------ Small Storage Unit Improved Terrain Scanner > --- WEAPON (2) ------- Subdweller Beam Cannon Battle Rifle > --- INVENTORY (8) ---- Aluminum Leg Subdweller Monowheel Subdweller Optics Seismic Detector Small Laser Subdweller Machine Gun Subdweller Machine Gun Peak State ------------ > --- POWER ------------ Ion Engine > --- PROPULSION ------- Light Treads Spiked Treads > --- UTILITY ---------- Small Storage Unit Improved Terrain Scanner > --- WEAPON ----------- Subdweller Beam Cannon Battle Rifle > --- INVENTORY -------- Ion Engine Aluminum Leg Aluminum Leg Subdweller Monowheel Subdweller Optics Seismic Detector Small Laser Light Assault Rifle [Rating: 13] Favorites ----------- Power Ion Engine Engine Ion Engine Propulsion Light Treads Treads Light Treads Leg Aluminum Leg Utility Small Storage Unit Device Improved Terrain Scanner Storage Small Storage Unit Weapon Light Assault Rifle Energy Cannon Subdweller Beam Cannon Ballistic Gun Light Assault Rifle Build | -11 -10 -10 ------- Run | Yrd Mat Sub Slots Evolved . | . . . Power . | . . . Propulsion . | . . . Utility . | . . . Weapon . | . . . Parts Attached 13 | 7 . 6 Power 2 | 1 . 1 Engine 2 | 1 . 1 Core . | . . . Reactor . | . . . Propulsion 4 | 2 . 2 Treads 3 | 2 . 1 Leg 1 | . . 1 Wheel . | . . . Hover . | . . . Flight . | . . . Utility 2 | 2 . . Device 1 | 1 . . Storage 1 | 1 . . Processor . | . . . Hackware . | . . . Protection . | . . . Artifact . | . . . Weapon 5 | 2 . 3 Energy Gun . | . . . Energy Cannon 1 | . . 1 Ballistic Gun 4 | 2 . 2 Ballistic Cannon . | . . . Launcher . | . . . Special Weapon . | . . . Impact Weapon . | . . . Slashing Weapon . | . . . Piercing Weapon . | . . . Special Melee Weapon . | . . . Unidentified Prototypes . | . . . Parts Lost 2 | . . 2 Power 1 | . . 1 Propulsion 1 | . . 1 Utility . | . . . Weapon . | . . . Highest Loss Streak 1 | . . 1 To Critical Strikes . | . . . Average Backups 7 | 4 7 7 Power . | . 1 . Propulsion 3 | 3 4 3 Utility 2 | . 1 2 Weapon 1 | . 1 1 Tool/Special . | . . . Unused Backups 9 | . . 9 Power . | . . . Propulsion 4 | . . 4 Utility 3 | . . 3 Weapon 2 | . . 2 Tool/Special . | . . . Average Slot Usage (%) 99 | . 100 99 Engine 13 | . 14 13 Treads 26 | . 28 26 Leg 1 | . . 1 Device 14 | . 14 14 Storage 14 | . 14 14 Energy Cannon 1 | . . 1 Ballistic Gun 26 | . 28 26 Peak Build Rating 13 | 9 9 13 Average Rating 10 | 6 9 11 On Entrance 6 | . 9 9 Avg Prop Armor Cover (%) 7 | . . 7 Naked Turns . | . . . Heaviest Build 21 | 13 13 21 Greatest Support 40 | 40 40 40 Greatest Overweight (x) 3 | 3 . 2 Average Overweight (x) . | . . . Largest Inventory Capacity 8 | 8 8 8 Average Capacity 7 | 7 8 8 Most Carried 8 | 7 8 8 Average Carried 7 | 5 7 7 Final Capacity 8 | 8 8 8 Final Carried 8 | 7 8 7 Class Distribution -------------------- 100% | Mutant Dominant Class ---------------- Mutant | -10/Materials Mutant | -10/Subcaves Resources | -11 -10 -10 ----------- Run | Yrd Mat Sub Matter Collected 464 | 292 . 172 Remotely . | . . . Salvage Created 522 | 116 . 406 Parts 31 | 9 . 22 Haulers Intercepted . | . . . Recyclers Shooed . | . . . Parts Field Recycled . | . . . Retrieved Matter . | . . . Parts Self-Destructed 4 | . . 4 Prevented . | . . . Parts Restored . | . . . Kills | -11 -10 -10 ------- Run | Yrd Mat Sub Combat Hostiles Destroyed 9 | . . 9 Guns 8 | . . 8 Cannons 1 | . . 1 Classes Destroyed 3 | 2 . 1 Tunneler 2 | 2 . . Recycler 1 | 1 . . Subdweller 9 | . . 9 Best Kill Streak 3 | 3 . 3 Combat Bots Only 3 | . . 3 Max Kills in Single Turn 1 | 1 . 1 Gunslinging . | . . . Exploded . | . . . Melee . | . . . Uniques/NPCs Destroyed . | . . . Combat | -11 -10 -10 -------- Run | Yrd Mat Sub Hostile Shots Fired 46 | . . 46 Missed 11 | . . 11 Hits 35 | . . 35 Projectile 35 | . . 35 Damage Taken 821 | . . 821 Core 260 | . . 260 Absorbed by Shields . | . . . Core Remaining (%) 100 | 100 . . Volleys Fired 46 | 11 . 35 Largest 2 | 2 . 2 Hottest 105 | 40 . 105 Shots Fired 88 | 22 . 66 Gun 76 | 22 . 54 Cannon 12 | . . 12 Launcher . | . . . Special . | . . . Kinetic 76 | 22 . 54 Thermal 12 | . . 12 Explosive . | . . . Electromagnetic . | . . . Robot Hit Streak 18 | 5 . 18 Robot Miss Streak 3 | 3 . 2 Penetration Max . | . . . Secondary Targets . | . . . Shots Hit Robots 67 | 14 . 53 Core Hits 29 | 6 . 23 Critical Kills . | . . . Critical Parts Destroyed . | . . . Critical Strikes . | . . . Melee Attacks . | . . . Impact . | . . . Slashing . | . . . Piercing . | . . . Sneak Attacks . | . . . Combat Hostiles . | . . . Follow-up Attacks . | . . . Damage Inflicted 889 | 111 . 778 Guns 629 | 111 . 518 Cannons 260 | . . 260 Explosions . | . . . Melee . | . . . Ramming . | . . . Kinetic 629 | 111 . 518 Thermal 260 | . . 260 Explosive . | . . . Electromagnetic . | . . . Impact . | . . . Slashing . | . . . Piercing . | . . . Highest Corruption . | . . . Average Corruption . | . . . Corruption Purged . | . . . Corruption Blocked . | . . . Overload Shots . | . . . Overflow Damage . | . . . Projectiles . | . . . Explosions . | . . . Melee . | . . . Knockbacks . | . . . Impact . | . . . Kinetic . | . . . Secondary . | . . . Self-Inflicted Damage . | . . . Shots . | . . . Rammed . | . . . Targets Rammed . | . . . Kicked . | . . . Crushed . | . . . Highest Temperature 57 | . . 57 Average Temperature 22 | . . 22 Received Heat Transfer 174 | . . 174 Siege Activations . | . . . Martial Activations . | . . . Shielding Activations . | . . . Robots Disrupted . | . . . Combat Hostiles . | . . . Robots Corrupted . | . . . Combat Hostiles . | . . . Parts Fried . | . . . Impact Corruptions . | . . . Robots Melted . | . . . Combat Hostiles . | . . . Parts Melted 3 | . . 3 Heat Transferred 333 | . . 333 Parts Sabotaged . | . . . Parts Stolen . | . . . Parts Stripped . | . . . Power Chain Reactions . | . . . Alert | -11 -10 -10 ------- Run | Yrd Mat Sub Maximum Alert Level . | . . . Low Security (%) 100 | 100 100 . Level 1 . | . . . Level 2 . | . . . Level 3 . | . . . Level 4 . | . . . Level 5 . | . . . High Security . | . . . Max Security . | . . . Peak Influence 10 | 10 . . Initial . | . . . Average . | . . . Influence Increases 15 | 15 . . Destroy 0b10 Robot/NC 15 | 15 . . Influence Decreases 15 | 15 . . Time Decay 15 | 15 . . Squads Dispatched . | . . . Investigation . | . . . Extermination . | . . . Reinforcement . | . . . Assault . | . . . Garrison . | . . . Intercept . | . . . Searches Triggered . | . . . Construction Impeded . | . . . Haulers Reinforced . | . . . Active Scanning Responses . | . . . Cargo Convoy Interrupts . | . . . Stealth | -11 -10 -10 --------- Run | Yrd Mat Sub Distress Signals . | . . . Communications Jammed . | . . . Distress Signals . | . . . Times Spotted 10 | . . 10 Peak Tracking Total 3 | . 1 3 Tactical Retreats . | . . . Traps | -11 -10 -10 ------- Run | Yrd Mat Sub Traps Triggered 1 | . . 1 Indirectly . | . . . Trap Hack Attempts . | . . . Triggered . | . . . Disarmed . | . . . Reprogrammed . | . . . Reused . | . . . Traps Extracted . | . . . Installed . | . . . Triggered . | . . . Machines | -11 -10 -10 ---------- Run | Yrd Mat Sub Machines Disabled . | . . . Max in Single Turn . | . . . Machines Repaired . | . . . Machines Dismantled . | . . . Machines Sabotaged . | . . . Overloaded Fab Kills . | . . . Hacking | -11 -10 -10 --------- Run | Yrd Mat Sub Machines Accessed 3 | . . 3 Terminals . | . . . Fabricators . | . . . Repair Stations . | . . . Recycling Units . | . . . Scanalyzers . | . . . Garrison Access . | . . . Total Hacks 4 | . . 4 Successful 4 | . . 4 Failed . | . . . Catastrophic . | . . . Database Lockouts . | . . . Manual . | . . . Terminals . | . . . Fabricators . | . . . Repair Stations . | . . . Recycling Units . | . . . Scanalyzers . | . . . Garrison Access . | . . . Terminal Hacks 4 | . . 4 Record 1 | . . 1 Open Door 1 | . . 1 Proto ID Catalog 1 | . . 1 Release Object 1 | . . 1 Fabricator Hacks . | . . . Repair Station Hacks . | . . . Recycling Unit Hacks . | . . . Scanalyzer . | . . . Garrison Access Hacks . | . . . Unauthorized Hacks . | . . . Terminals . | . . . Fabricators . | . . . Repair Stations . | . . . Recycling Units . | . . . Scanalyzers . | . . . Garrison Access . | . . . Data Cores Recovered . | . . . Used . | . . . Hacking Detections . | . . . Full Trace Events . | . . . Feedback Events . | . . . Feedback Blocked . | . . . Robot Schematics Acquired . | . . . Robots Built . | . . . Authchips . | . . . Time . | . . . Total Robot Build Rating . | . . . Part Schematics Acquired . | . . . Parts Built . | . . . Authchips . | . . . Time . | . . . Total Part Build Rating . | . . . Part Studies Acquired . | . . . Parts Repaired . | . . . Time . | . . . Parts Recycled . | . . . Recycled Matter . | . . . Retrieved Matter . | . . . Retrieved Components . | . . . Parts Scanalyzed . | . . . Part Schematics Acquired . | . . . Parts Damaged . | . . . Bothacking | -11 -10 -10 ------------ Run | Yrd Mat Sub Used RIF Installer . | . . . Robots Hacked . | . . . Non-combat . | . . . Combat . | . . . Robot Hacks Applied . | . . . Relay Couplers Released . | . . . Fabnet Peak Effective % . | . . . Robots Rewired . | . . . Allies Hacked . | . . . Hacks Repelled . | . . . Allies | -11 -10 -10 -------- Run | Yrd Mat Sub Total Allies . | . . . Largest Group . | . . . Highest-Rated Group . | . . . Highest-Rated Ally . | . . . Total Orders . | . . . Ally Attacks . | . . . Total Damage . | . . . Kills . | . . . Allies Corrupted . | . . . Allies Melted . | . . . Intel | -11 -10 -10 ------- Run | Yrd Mat Sub Active Infowar (turns) 1566 | 39 160 1367 Terrain 1566 | 39 160 1367 Robot Analysis Total . | . . . Derelict Logs Recovered . | . . . Drone Launches . | . . . Drone Recoveries . | . . . Exploration | -11 -10 -10 ------------- Run | Yrd Mat Sub Turns Passed 1659 | 132 160 1367 Spaces Moved 678 | 56 94 528 Core 7 | 7 . . Treads 669 | 49 94 526 Legs 2 | . . 2 Wheels . | . . . Hover . | . . . Flight . | . . . Fastest Speed 50 | 50 160 160 Average Speed 164 | 151 160 167 Slowest Speed 260 | 200 160 260 Overloaded Moves . | . . . Propulsion Burnouts . | . . . Robots Hopped . | . . . Potential Cave-ins . | . . . Cave-ins Triggered . | . . . Exploration Rate (%) 20 | 4 25 31 Regions Visited 2 Branch Regions 1 Pre-discovered Areas . | . . . Known Exits Taken . | . . . Unknown Exits Taken 2 | 1 1 . Scrap Searched . | . . . Spaces Dug . | . . . Terrain Destroyed 1 | . . 1 Melee . | . . . Projectile 1 | . . 1 AOE . | . . . Terrain Rammed . | . . . Walls Destroyed . | . . . Machines Disabled . | . . . Actions | -11 -10 -10 --------- Run | Yrd Mat Sub Total 1143 | 82 104 957 Wait 388 | 2 10 376 Move 676 | 55 93 528 Hop . | . . . Pick Up 12 | 7 1 4 Fast Attach 7 | 7 . . Attach 2 | . . 2 Detach . | . . . Swap 6 | . . 6 Drop 6 | . . 6 Fire 46 | 11 . 35 Melee . | . . . Ram . | . . . Kick . | . . . Crush . | . . . Escape Stasis . | . . . Rewire . | . . . Trap . | . . . Miscellaneous . | . . . Route ------- -11/Scrapyard -10/Materials (discovered 3 exits: [*Mat] / [*Min] / *Sub) -10/Subcaves History --------- Turn | Location | Event 14 | -11/Scrapyard | Discovered new exit (range 16) 133 | -11/Scrapyard | Entered Materials 134 | -10/Materials | Met a group of wandering Federalists 199 | -10/Materials | Discovered new exit (range 11) 263 | -10/Materials | Discovered new exit (range 7) 265 | -10/Materials | Discovered new exit (range 11) 293 | -10/Materials | Entered Subcaves 294 | -10/Subcaves | Continued accompanying wandering Federalists (3) 294 | -10/Subcaves | Approached by a straggling Scientist 305 | -10/Subcaves | Build established: Mutant 431 | -10/Subcaves | Lost 3 allies 620 | -10/Subcaves | Shifting Twisted Machinery released Battle Rifle 1311 | -10/Subcaves | Visited 4L-MR0's lab 1502 | -10/Subcaves | Core integrity fell below 50% 1512 | -10/Subcaves | Core integrity fell below 20% 1660 | -10/Subcaves | Destroyed by P3-EEI(R) with Subdweller Laser Last Messages --------------- Powered Cannon 01353_ Dropped Lgt. Assault Rifle. 01353_ Acquired Sub. Machine Gun. 01353_ Acquired 10 matter. MO-6LU(c): "I think it's somewhere northeast of here" 01422_ W2-VO5(O) collects matter. MO-6LU(c): "I think it's somewhere northeast of here" 01512_ Disposable Heat Sink melted. 01512_ L0-KJ9(R) destroyed. 01513_ Subatomizers dissect the Sub. Laser. 01515_ Spk. Treads destroyed. MO-6LU(c): "I think it's somewhere northeast of here" 01518_ Sub. Optics melted. 01518_ 0L-MAA(R) destroyed. 01521_ Acquired 36 matter. 01526_ Subatomizers dissect the Sub. Power Source. MO-6LU(c): "I think it's somewhere northeast of here" 01626_ FZ-T7S(R) destroyed. 01639_ Acquired 9 matter. 01658_ Sub. Beam Cannon shoots sparks and powers down. Map ----- +----------------------------------------------------+ | ?????????????????????????????????????????????????? | | ?????????????????????????????????????????????????? | | ?????????????????????????????????????????????????? | | ?????????????????????????????????????????????????? | | ?????????????????????????????????????????????????? | | ?????????????????????????????????????????????????? | | ?????????????????????????????????????????????????? | | ?????????????????????????????????????????????????? | | ?????????????????????????????????????????????????? | | ???????????????????#?????????????????????????????? | | ?????????????????????????????????????????????????? | | ?????????????????????????????????????????????????? | | ????????????????????????????#????????????????????? | | ?????????????????????????????????#???????????????? | | ?????????????????????????????????????????????????? | | ????????????????????????#????#?????????#?????????? | | ??????????????????????###??#########?????????????? | | ???????????????????#???#"### ???????????????? | | ???????????? ?????## ###" ????????????????? | | ??????????????????? "" ?????????????????? | | ????????????????????" " #??????????????????? | | ??????????????? ??????# "" #???????#??????????? | | ?????????????#?#???????#=&"" #??????????????????? | | ????????????????#????#???#%R "#??????#?#?????????? | | ????????????????"#"###"###&! "##???????#?????#???? | | #??????????? " @& ##?????????#??????? | | ?????????????????## # # # #?#??????????????? | | ????????? ????????????### ####?????????#??????? | | #????????????????#?????### ##???????????????????? | | ?????## ???????????????### ##???????????????????? | | ???? ???????????????#?# ##??????????????????? | | ??#? #????????????##???# ##??????????#????????? | | ???? #????? ?????## ## #????###?###?????????? | | ???# ##????? ???## ###?##"### #?????#???? | | ??# ###??? ### ###"""" #?????????? | | ?## #??## ## ## "" ##????????? | | ## #?# ##### " "" #????????? | | # ## ?????# "" ""#????????? | | # ??????# ###" "" ##????????? | | #???##""???#???# ##?# " " #?????????? | | #####??????????##?#?#"" ###???????# | | #???????????????# ""### ##????#??? | | ""#?#??????#????????#"""#?## ###?????? | | ####????????????????? #??## "##????? | | ##????????????#?????? #???# "####?# | | ##??????????????????#?? ##???## " " ##? | | #########????"????????????? ????#???# "" "" #? | | ##??### ####"""?# ??????????????????# "## "##? | | ##### """???"""??#??? ????????###### ##?? | | ## #???"?""""#?? ? ?????????##?## ##?# | +----------------------------------------------------+ Best States ------------- Heat Dissipation 25 Energy Generation 10 Energy Capacity 250 Matter Stores 300 Matter Capacity 300 Sight Range 16 Terrain Scan Range 16 Terrain Scan Density 10 Evasion (%) 40 Recoil Reduction 2 Item Schematics ----------------- None Robot Schematics ------------------ None Fabricated ------------ Nothing Repaired ---------- Nothing Studied --------- None Alien Tech Used ----------------- None Achievements -------------- None Challenges ------------ None Game ------ Seed ContainmentVoltaicBattery Manual? 0 Play Time 00:09:34 Cumulative 156.5 hours Start 2026.03.18 @ 18:07:36 End 2026.03.19 @ 11:33:49 Sessions 2 Manual Loads 0 Difficulty Rogue Special Mode None Game No. 99 Rogue 95 Adventurer 4 Explorer 0 Win Type - Total 11 Types 11/0/0/0/0/0/0/0/0/0 Lore% 81 Gallery% 57 Achievement% 51 Wizard Run 0 Options --------- Layout 0 ASCII 0 Keyboard 1 Movement Vi Keybinds 0 Fullscreen 0 Font 16/SmallcapsGlow Map View 76x50 Zoom Use 0% Tactical HUD 1 Map Filters NONE Filters NONE Steam 1 RUN: f6649600-4073-4918-a107-efdf70c1241d